bitfinex/quotes_BTCUSD_20240719
["timestamp","ask_amount","ask_price","bid_price","bid_amount"]
[1721400984247,0.00836,65786.0,65785.0,1.98434028]
[1721400984448,0.00836,65786.0,65785.0,1.93434028]
[1721400985655,0.00836,65786.0,65785.0,1.93434045]
[1721400985868,0.00836,65786.0,65785.0,1.80817638]
[1721400986070,0.00836,65786.0,65785.0,1.93434178]
[1721400986273,0.00836,65786.0,65785.0,1.95238334]
[1721400986475,0.00836,65786.0,65785.0,1.95238405]
[1721400987002,0.00836,65786.0,65785.0,1.79800231]
[1721400987205,0.00836,65786.0,65785.0,1.6222554]
[1721400988119,0.00836,65786.0,65785.0,1.2182354]
[1721400988988,0.00836,65786.0,65785.0,1.21825594]
[1721400990460,0.00836,65786.0,65785.0,1.52227594]
[1721400990684,0.00836,65786.0,65785.0,1.77665768]
[1721400991073,0.00836,65786.0,65785.0,1.62227594]
[1721400991287,0.00836,65786.0,65785.0,1.77998903]
[1721400991423,0.00836,65786.0,65785.0,1.62227594]
[1721400992072,0.00836,65786.0,65785.0,0.91423594]
[1721400992073,0.08856,65786.0,65785.0,0.91423594]
[1721400992224,0.08856,65786.0,65785.0,0.91423211]
[1721400992225,0.17816,65786.0,65785.0,0.91423211]
[1721400992424,0.17816,65786.0,65785.0,0.18001]
[1721400992709,0.17816,65786.0,65785.0,0.48403]
[1721400993177,0.17816,65786.0,65785.0,0.18001]
[1721400993369,0.17816,65786.0,65785.0,0.48403]
[1721400993533,0.17816,65786.0,65785.0,0.78805]
[1721400993755,0.17816,65786.0,65785.0,0.48403]
[1721400994218,0.17816,65786.0,65785.0,1.09207]
[1721400994361,0.17816,65786.0,65785.0,0.78805]
[1721400994766,0.00836,65786.0,65785.0,0.91424137]
[1721400994979,0.00836,65786.0,65785.0,1.20426137]
[1721400995194,0.00836,65786.0,65785.0,1.29024596]
[1721400995650,0.00836,65786.0,65785.0,1.60526596]
[1721400995851,0.00836,65786.0,65785.0,1.60326596]
[1721400996049,0.00836,65786.0,65785.0,1.7576477]
[1721400996245,0.00836,65786.0,65785.0,1.7646477]
[1721400996439,0.00836,65786.0,65785.0,1.91336154]
[1721400997091,0.00836,65786.0,65785.0,1.7656477]
[1721400997201,0.00836,65786.0,65785.0,1.92438125]
[1721400997418,0.00836,65786.0,65785.0,1.76667519]
[1721400997621,0.00836,65786.0,65785.0,1.7486477]
[1721400998228,0.00836,65786.0,65785.0,1.74864089]
[1721400998468,0.00836,65786.0,65785.0,1.95635124]
[1721400998665,0.00836,65786.0,65785.0,1.92438014]
[1721400998890,0.00836,65786.0,65785.0,1.93738014]
[1721400999422,0.00836,65786.0,65785.0,1.96438014]
[1721400999831,0.00836,65786.0,65785.0,1.93738014]
[1721400999968,0.00836,65786.0,65785.0,1.93335124]
[1721401000169,0.00836,65786.0,65785.0,1.76264089]
[1721401000392,0.00836,65786.0,65785.0,1.92035188]
[1721401000594,0.00836,65786.0,65785.0,1.95238078]
[1721401001171,0.00836,65786.0,65785.0,1.93435188]
[1721401001372,0.00836,65786.0,65785.0,1.95239074]
[1721401001522,0.00836,65786.0,65785.0,1.93434972]
[1721401001713,0.00836,65786.0,65785.0,1.80818273]
[1721401001911,0.00836,65786.0,65785.0,1.92034569]
[1721401002334,0.00836,65786.0,65785.0,1.93434569]
[1721401003309,0.00836,65786.0,65785.0,1.92034569]
[1721401003674,0.00836,65786.0,65785.0,1.93434569]
[1721401004330,0.00836,65786.0,65785.0,1.92034569]
[1721401004550,0.00836,65786.0,65785.0,1.93434828]
[1721401004751,0.00836,65786.0,65785.0,1.98434828]
[1721401005146,0.00836,65786.0,65785.0,1.97034828]
[1721401005349,0.00836,65786.0,65785.0,1.95634828]
[1721401005487,0.00836,65786.0,65785.0,2.88269249]
[1721401005686,1e-08,65786.0,65785.0,2.94689249]
[1721401005894,1e-08,65786.0,65785.0,2.96089249]
[1721401006268,1e-08,65786.0,65785.0,3.0732226]
[1721401006568,1e-08,65786.0,65785.0,3.05076092]
[1721401006919,1e-08,65786.0,65785.0,2.96089249]
[1721401007322,1e-08,65786.0,65785.0,2.30860273]
[1721401007526,1e-08,65786.0,65785.0,3.05073544]
[1721401007847,1e-08,65786.0,65785.0,2.96085123]
[1721401008625,1e-08,65786.0,65785.0,3.02825785]
[1721401008851,1e-08,65786.0,65785.0,2.50216257]
[1721401009019,1e-08,65786.0,65785.0,2.47758578]
[1721401010512,1e-08,65786.0,65785.0,2.47759921]
[1721401011855,1e-08,65786.0,65785.0,2.23836132]
[1721401012078,1e-08,65786.0,65785.0,2.28836132]
[1721401012358,1e-08,65786.0,65785.0,2.23836132]
[1721401013615,1e-08,65786.0,65785.0,2.23836184]
[1721401013846,1e-08,65786.0,65785.0,1.97925921]
[1721401014372,1e-08,65786.0,65785.0,1.93434184]
[1721401014731,1e-08,65786.0,65785.0,1.99742228]
[1721401016103,1e-08,65786.0,65785.0,1.84304054]
[1721401016746,1e-08,65786.0,65785.0,1.7799601]
[1721401016956,1e-08,65786.0,65785.0,1.88797724]
[1721401017173,1e-08,65786.0,65785.0,1.93797724]
[1721401017384,1e-08,65786.0,65785.0,2.09235898]
[1721401017588,1e-08,65786.0,65785.0,2.47417468]
[1721401017795,1e-08,65786.0,65785.0,2.85349468]
[1721401018016,1e-08,65786.0,65785.0,2.95285992]
[1721401018222,1e-08,65786.0,65785.0,3.0427791]
[1721401018648,1e-08,65786.0,65785.0,3.06520169]
[1721401018885,1e-08,65786.0,65785.0,2.95285992]
[1721401019305,1e-08,65786.0,65785.0,3.06526256]
[1721401019947,1e-08,65786.0,65785.0,2.18750273]
[1721401020185,1e-08,65786.0,65785.0,2.99278598]
[1721401020393,1e-08,65786.0,65785.0,2.61598125]
[1721401020596,1e-08,65786.0,65785.0,2.91750559]
[1721401020802,1e-08,65786.0,65785.0,2.61348559]
[1721401020987,0.14450001,65786.0,65785.0,1.91049221]
[1721401021184,0.14450001,65786.0,65785.0,1.84304025]
[1721401021619,0.07940001,65786.0,65785.0,1.91049221]
[1721401022025,1e-08,65786.0,65785.0,2.26986343]
[1721401022141,1e-08,65786.0,65785.0,1.70380099]
[1721401022352,1e-08,65786.0,65785.0,2.50906116]
[1721401022557,1e-08,65786.0,65785.0,2.87755248]
[1721401022766,1e-08,65786.0,65785.0,3.0310629]
[1721401022965,1e-08,65786.0,65785.0,2.9810629]
[1721401023161,1e-08,65786.0,65785.0,2.94115248]
[1721401023807,1e-08,65786.0,65785.0,3.05350367]
[1721401024390,1e-08,65786.0,65785.0,2.94115248]
[1721401024600,0.002,65789.0,65788.0,1.672033]
[1721401024814,0.002,65789.0,65788.0,3.15348148]
[1721401025229,0.002,65789.0,65788.0,3.10341959]
[1721401025452,0.002,65789.0,65788.0,3.15341959]
[1721401025663,0.002,65789.0,65788.0,3.20341959]
[1721401025869,0.002,65789.0,65788.0,3.15341959]
[1721401026074,0.002,65789.0,65788.0,3.20341959]
[1721401027692,0.002,65789.0,65788.0,3.22941959]
[1721401027924,0.002,65789.0,65788.0,3.24341959]
[1721401028321,0.002,65789.0,65788.0,2.84349836]
[1721401028456,0.002,65789.0,65788.0,3.35565507]
[1721401028659,0.00181705,65789.0,65788.0,3.35565507]
[1721401028856,0.00181705,65789.0,65788.0,3.243407]
[1721401029085,0.00181705,65789.0,65788.0,3.257407]
[1721401029294,0.00181705,65789.0,65788.0,3.217407]
[1721401029494,0.00181705,65789.0,65788.0,3.30719834]
[1721401029691,0.00181705,65789.0,65788.0,3.25719834]
[1721401029894,0.00181705,65789.0,65788.0,3.153407]
[1721401030097,0.00181705,65789.0,65788.0,2.495395]
[1721401030260,0.00181705,65789.0,65788.0,2.22591996]
[1721401030462,0.00181705,65789.0,65788.0,2.49538867]
[1721401030771,0.00181705,65789.0,65788.0,2.58522413]
[1721401030972,0.00181705,65789.0,65788.0,2.57676756]
[1721401031232,0.00181705,65789.0,65788.0,2.17255302]
[1721401031409,0.00181705,65789.0,65788.0,1.90211907]
[1721401031604,0.00181705,65789.0,65788.0,2.57682558]
[1721401031805,0.00181705,65789.0,65788.0,2.5094374]
[1721401031982,0.00181705,65789.0,65788.0,2.17257816]
[1721401033863,0.00181705,65789.0,65788.0,2.15857816]
[1721401034074,0.00181705,65789.0,65788.0,2.20350624]
[1721401034519,0.00181705,65789.0,65788.0,1.84319852]
[1721401034728,0.00181705,65789.0,65788.0,2.20351867]
[1721401034974,0.00181705,65789.0,65788.0,2.21751867]
[1721401035565,0.00181705,65789.0,65788.0,2.17259227]
[1721401035737,0.00181705,65789.0,65788.0,2.21754336]
[1721401035944,0.00181705,65789.0,65788.0,2.00008304]
[1721401036156,0.00181705,65789.0,65788.0,1.71420743]
[1721401036348,0.00181705,65789.0,65788.0,1.52496971]
[1721401036525,0.00181705,65789.0,65788.0,1.71420743]
[1721401036732,0.00181705,65789.0,65788.0,1.52496971]
[1721401036929,0.00181705,65789.0,65788.0,1.71420743]
[1721401037253,0.00181705,65789.0,65788.0,1.52496971]
[1721401037615,0.00181705,65789.0,65788.0,1.33573199]
[1721401037826,0.00181705,65789.0,65788.0,1.52497929]
[1721401038202,0.00181705,65789.0,65788.0,1.33573199]
[1721401038358,0.00181705,65789.0,65788.0,1.52497929]
[1721401038790,0.00181705,65789.0,65788.0,1.71422659]
[1721401039173,0.00181705,65789.0,65788.0,1.52497929]
[1721401039377,0.00181705,65789.0,65788.0,1.71422659]
[1721401039604,0.00181705,65789.0,65788.0,1.52497929]
[1721401039807,0.00181705,65789.0,65788.0,1.78167509]
[1721401040040,0.00181705,65789.0,65788.0,1.71422659]
[1721401040686,0.00181705,65789.0,65788.0,2.45542862]
[1721401040898,0.00181705,65789.0,65788.0,2.29294218]
[1721401041119,0.00181705,65789.0,65788.0,2.70941037]
[1721401041383,0.00181705,65789.0,65788.0,2.59694818]
[1721401041595,0.00181705,65789.0,65788.0,2.70940865]
[1721401041803,0.00181705,65789.0,65788.0,2.68689698]
[1721401042008,0.00181705,65789.0,65788.0,2.70940865]
[1721401042575,0.00181705,65789.0,65788.0,2.59694818]
[1721401042783,0.00181705,65789.0,65788.0,2.28157171]
[1721401042948,0.00181705,65789.0,65788.0,2.59694936]
[1721401043371,0.00181705,65789.0,65788.0,2.70937396]
[1721401043574,0.00181705,65789.0,65788.0,2.68689622]
[1721401043965,0.07701705,65789.0,65788.0,1.33573199]
[1721401044158,0.07701705,65789.0,65788.0,1.71422214]
[1721401044353,0.07701705,65789.0,65788.0,1.75921348]
[1721401044809,0.07701705,65789.0,65788.0,1.76013748]
[1721401044989,0.07701705,65789.0,65788.0,1.30510838]
[1721401044990,0.14005705,65789.0,65788.0,1.30510838]
[1721401045823,0.14005705,65789.0,65788.0,1.52590219]
[1721401046031,0.14005705,65789.0,65788.0,1.46281824]
[1721401046236,0.14005705,65789.0,65788.0,1.52590434]
[1721401046443,0.14005705,65789.0,65788.0,1.46282015]
[1721401046652,0.14005705,65789.0,65788.0,1.30510838]
[1721401046854,0.14005705,65789.0,65788.0,1.31910838]
[1721401047061,0.14005705,65789.0,65788.0,1.192945]
[1721401047265,0.14005705,65789.0,65788.0,1.31911391]
[1721401047690,0.14005705,65789.0,65788.0,1.62311991]
[1721401047892,0.07785705,65789.0,65788.0,1.84391522]
[1721401048096,0.07785705,65789.0,65788.0,1.88890852]
[1721401048299,0.07785705,65789.0,65788.0,1.84391522]
[1721401048471,0.07785705,65789.0,65788.0,1.62311991]
[1721401049080,0.07785705,65789.0,65788.0,1.64114951]
[1721401049253,0.07785705,65789.0,65788.0,1.31911391]
[1721401049743,0.07785705,65789.0,65788.0,1.33714242]
[1721401050154,0.07785705,65789.0,65788.0,1.33714736]
[1721401050765,0.07785705,65789.0,65788.0,1.31911696]
[1721401051194,0.07785705,65789.0,65788.0,1.33714736]
[1721401051552,0.07785705,65789.0,65788.0,1.31911696]
[1721401051667,0.07785705,65789.0,65788.0,1.33714736]
[1721401051869,0.07785705,65789.0,65788.0,1.192945]
[1721401052071,0.07785705,65789.0,65788.0,1.31911588]
[1721401052918,0.07785705,65789.0,65788.0,1.62312188]
[1721401053246,0.07785705,65789.0,65788.0,1.31911588]
[1721401053435,0.07785705,65789.0,65788.0,1.33713011]
[1721401054217,0.00265705,65789.0,65788.0,1.64113611]
[1721401054399,0.00265705,65789.0,65788.0,2.62706497]
[1721401054630,0.062,65797.0,65796.0,1.063891]
[1721401054834,0.062,65797.0,65796.0,1.41082312]
[1721401055064,0.062,65797.0,65796.0,1.5557555]
[1721401055267,0.062,65797.0,65796.0,1.81479221]
[1721401055438,0.062,65797.0,65796.0,1.59403088]
[1721401056138,0.062,65797.0,65796.0,1.29606188]
[1721401056338,0.062,65797.0,65796.0,1.163891]
[1721401056540,0.062,65797.0,65796.0,1.29004527]
[1721401056763,0.062,65797.0,65796.0,1.176891]
[1721401056967,0.062,65797.0,65796.0,1.30305043]
[1721401057183,0.062,65797.0,65796.0,1.3661249]
[1721401057456,0.062,65797.0,65796.0,1.31605043]
[1721401057879,0.062,65797.0,65796.0,1.47374118]
[1721401058107,0.062,65797.0,65796.0,1.31605043]
[1721401058507,0.062,65797.0,65796.0,1.33005043]
[1721401059111,0.062,65797.0,65796.0,1.31605043]
[1721401059323,0.062,65797.0,65796.0,1.31604857]
[1721401059531,0.085,65797.0,65796.0,1.34805737]
[1721401059740,0.085,65797.0,65796.0,1.33004857]
[1721401060574,0.062,65797.0,65796.0,1.33004857]
[1721401062161,0.1374,65797.0,65796.0,1.02607957]
[1721401062573,0.1374,65797.0,65796.0,1.02608738]
[1721401063188,0.1374,65797.0,65796.0,1.33005638]
[1721401063746,0.1374,65797.0,65796.0,1.34806135]
[1721401063951,0.1374,65797.0,65796.0,1.34805521]
[1721401064829,0.20835,65798.0,65797.0,0.759912]
[1721401065000,0.20835,65798.0,65797.0,1.17532546]
[1721401065410,0.20835,65798.0,65797.0,1.63697666]
[1721401065611,0.20835,65798.0,65797.0,1.32155683]
[1721401065815,0.20835,65798.0,65797.0,1.29002261]
[1721401066151,0.40835,65798.0,65797.0,1.29002261]
[1721401066292,0.40835,65798.0,65797.0,1.3080132]
[1721401066665,0.40835,65798.0,65797.0,1.30202261]
[1721401066861,0.40835,65798.0,65797.0,1.31602261]
[1721401068060,0.20835,65798.0,65797.0,1.3340132]
[1721401068260,0.20835,65798.0,65797.0,1.31602261]
[1721401068625,0.20835,65798.0,65797.0,1.189877]
[1721401068820,0.20835,65798.0,65797.0,1.31603176]
[1721401071777,0.20835,65798.0,65797.0,1.31603178]
[1721401073166,0.20835,65798.0,65797.0,1.66295016]
[1721401073379,0.20835,65798.0,65797.0,1.31603178]
[1721401074971,0.20835,65798.0,65797.0,1.31603173]
[1721401076632,0.20835,65798.0,65797.0,1.66295388]
[1721401077375,0.20835,65798.0,65797.0,1.66295239]
[1721401077965,0.20835,65798.0,65797.0,1.34756556]
[1721401078164,0.20835,65798.0,65797.0,1.66294534]
[1721401078363,0.20835,65798.0,65797.0,1.47371747]
[1721401078675,0.20835,65798.0,65797.0,1.96691034]
[1721401078886,0.20835,65798.0,65797.0,1.47371747]
[1721401079248,0.20835,65798.0,65797.0,1.66294534]
[1721401079819,0.20835,65798.0,65797.0,1.96691034]
[1721401080057,0.20835,65798.0,65797.0,1.66294534]
[1721401080227,0.20835,65798.0,65797.0,1.75954534]
[1721401080479,0.20835,65798.0,65797.0,2.1084944]
[1721401080697,0.20835,65798.0,65797.0,2.46782097]
[1721401080866,0.20835,65798.0,65797.0,2.13096208]
[1721401081104,0.20835,65798.0,65797.0,2.10845618]
[1721401081275,0.20835,65798.0,65797.0,2.06348598]
[1721401082033,0.20835,65798.0,65797.0,2.10845618]
[1721401083277,0.20725,65798.0,65797.0,2.10845618]
[1721401083485,0.20725,65798.0,65797.0,1.79309716]
[1721401083692,0.20725,65798.0,65797.0,2.10846682]
[1721401083900,0.20725,65798.0,65797.0,1.79309699]
[1721401084110,0.20725,65798.0,65797.0,2.49022954]
[1721401084529,0.20725,65798.0,65797.0,2.40031477]
[1721401084732,0.20725,65798.0,65797.0,2.46775774]
[1721401084965,0.20725,65798.0,65797.0,2.06349891]
[1721401085109,0.20725,65798.0,65797.0,2.10846701]
[1721401085315,0.20725,65798.0,65797.0,2.13094188]
[1721401085525,0.20725,65798.0,65797.0,2.06349891]
[1721401085702,0.20725,65798.0,65797.0,2.10846846]
[1721401085903,0.20725,65798.0,65797.0,2.06349891]
[1721401086540,0.20725,65798.0,65797.0,1.98234728]
[1721401086719,0.20725,65798.0,65797.0,2.10849514]
[1721401086918,0.20725,65798.0,65797.0,2.06350021]
[1721401089511,0.20725,65798.0,65797.0,1.74813056]
[1721401089686,0.20725,65798.0,65797.0,2.06349997]
[1721401092427,0.35185,65798.0,65797.0,1.66293497]
[1721401092592,0.35185,65798.0,65797.0,1.50524641]
[1721401092797,0.35185,65798.0,65797.0,1.31603408]
[1721401093108,0.35185,65798.0,65797.0,1.96693328]
[1721401093109,0.20725,65798.0,65797.0,1.96693328]
[1721401093609,0.20725,65798.0,65797.0,2.01196253]
[1721401094015,0.20725,65798.0,65797.0,1.96693328]
[1721401094214,0.20725,65798.0,65797.0,2.0117867]
[1721401094660,0.20725,65798.0,65797.0,1.7078217]
[1721401094823,0.20725,65798.0,65797.0,1.5050987]
[1721401095482,0.20725,65798.0,65797.0,1.31586308]
[1721401095855,0.20725,65798.0,65797.0,1.50510126]
[1721401096204,0.20725,65798.0,65797.0,1.189706]
[1721401096407,0.20725,65798.0,65797.0,1.50509948]
[1721401096683,0.20725,65798.0,65797.0,1.60169948]
[1721401096882,0.20725,65798.0,65797.0,1.75939619]
[1721401098275,0.20725,65798.0,65797.0,1.90566448]
[1721401098509,0.20725,65798.0,65797.0,1.60169948]
[1721401099043,0.20725,65798.0,65797.0,1.60169441]
[1721401099667,0.20725,65798.0,65797.0,1.50509441]
[1721401100177,0.28325,65798.0,65797.0,1.50509441]
[1721401103372,0.28325,65798.0,65797.0,1.60169441]
[1721401104246,0.28325,65798.0,65797.0,1.75938864]
[1721401104905,0.28325,65798.0,65797.0,1.50509441]
[1721401105780,0.28325,65798.0,65797.0,1.5050954]
[1721401107786,0.28325,65798.0,65797.0,1.189706]
[1721401107989,0.34785,65798.0,65797.0,0.91189676]
[1721401110244,0.20725,65798.0,65797.0,1.21586176]
[1721401111431,0.20725,65798.0,65797.0,1.21586878]
[1721401111639,0.20725,65798.0,65797.0,0.91190378]
[1721401113147,0.37205,65798.0,65797.0,0.91190378]
[1721401113453,0.37205,65798.0,65797.0,0.91282778]
[1721401114532,0.37205,65798.0,65797.0,0.91283238]
[1721401115556,0.37205,65798.0,65797.0,1.21679738]
[1721401115557,0.34905,65798.0,65797.0,1.21679738]
[1721401115762,0.34905,65798.0,65797.0,1.37450279]
[1721401115961,0.20725,65798.0,65797.0,1.21679738]
[1721401116224,0.20725,65798.0,65797.0,1.23484078]
[1721401117080,0.20725,65798.0,65797.0,1.21679738]
[1721401117285,0.20725,65798.0,65797.0,1.31679738]
[1721401117659,0.20725,65798.0,65797.0,1.3167852]
[1721401119200,0.20725,65798.0,65797.0,1.506018]
[1721401119938,0.20725,65798.0,65797.0,1.809983]
[1721401120257,0.20725,65798.0,65797.0,1.506018]
[1721401120603,0.20725,65798.0,65797.0,1.50601558]
[1721401121004,0.20725,65798.0,65797.0,1.72677696]
[1721401121924,0.20725,65798.0,65797.0,2.03074196]
[1721401122138,0.20725,65798.0,65797.0,1.72677696]
[1721401122382,0.20725,65798.0,65797.0,2.07577406]
[1721401123809,0.20725,65798.0,65797.0,2.07573668]
[1721401124119,0.20725,65798.0,65797.0,1.65228008]
[1721401124330,0.20725,65798.0,65797.0,2.07573281]
[1721401126710,0.20725,65798.0,65797.0,1.65228008]
[1721401126910,0.20725,65798.0,65797.0,1.96765075]
[1721401129857,0.20725,65798.0,65797.0,1.96764671]
[1721401130623,0.20725,65798.0,65797.0,1.95764671]
[1721401130956,0.20725,65798.0,65797.0,1.75028171]
[1721401131159,0.20725,65798.0,65797.0,1.79531829]
[1721401131386,0.27255,65798.0,65797.0,1.79531875]
[1721401131583,0.27255,65798.0,65797.0,1.59259663]
[1721401132231,0.27255,65798.0,65797.0,1.40337665]
[1721401132403,0.20725,65798.0,65797.0,1.70734165]
[1721401132604,0.20725,65798.0,65797.0,1.40337665]
[1721401132993,0.20725,65798.0,65797.0,1.40338409]
[1721401133191,0.20725,65798.0,65797.0,1.49601522]
[1721401133422,0.20725,65798.0,65797.0,1.30678409]
[1721401136006,0.20725,65798.0,65797.0,1.18063]
[1721401136211,0.20725,65798.0,65797.0,1.43294112]
[1721401136914,0.20725,65798.0,65797.0,1.84736944]
[1721401137127,0.20725,65798.0,65797.0,1.82486913]
[1721401137340,0.20725,65798.0,65797.0,1.77986058]
[1721401138086,0.20725,65798.0,65797.0,2.48817814]
[1721401138285,0.20725,65798.0,65797.0,2.18421314]
[1721401138494,0.20725,65798.0,65797.0,2.18421258]
[1721401138687,0.20725,65798.0,65797.0,2.08382558]
[1721401139348,0.20725,65798.0,65797.0,2.08380552]
[1721401140630,0.20725,65798.0,65797.0,1.77984052]
[1721401140831,0.20725,65798.0,65797.0,1.84735755]
[1721401141175,0.20725,65798.0,65797.0,1.87644052]
[1721401141399,0.20725,65798.0,65797.0,1.92144607]
[1721401141785,0.20725,65798.0,65797.0,1.87644322]
[1721401141993,0.20725,65798.0,65797.0,1.92146829]
[1721401144325,0.20725,65798.0,65797.0,2.22543329]
[1721401144928,0.20725,65798.0,65797.0,2.22542619]
[1721401145315,0.20725,65798.0,65797.0,2.22542764]
[1721401146456,0.20725,65798.0,65797.0,2.09927208]
[1721401146657,0.20725,65798.0,65797.0,1.79530708]
[1721401147323,0.20725,65798.0,65797.0,2.09927208]
[1721401147842,0.20725,65798.0,65797.0,1.78390782]
[1721401148048,0.20725,65798.0,65797.0,2.39109024]
[1721401148470,0.20725,65798.0,65797.0,2.12179553]
[1721401148717,0.20725,65798.0,65797.0,2.05425179]
[1721401148935,0.20725,65798.0,65797.0,1.75028679]
[1721401149357,0.20725,65798.0,65797.0,1.79531768]
[1721401149564,0.27385,65798.0,65797.0,1.79531768]
[1721401149767,0.27385,65798.0,65797.0,1.75028654]
[1721401150493,0.20725,65798.0,65797.0,1.75028654]
[1721401150723,0.20725,65798.0,65797.0,1.79531743]
[1721401150919,0.20725,65798.0,65797.0,1.79531714]
[1721401151515,0.20725,65798.0,65797.0,2.09928214]
[1721401153751,0.20725,65798.0,65797.0,2.48107194]
[1721401154003,0.20725,65798.0,65797.0,1.82208086]
[1721401154185,0.20725,65798.0,65797.0,2.5917587]
[1721401154387,0.20725,65798.0,65797.0,2.5417587]
[1721401155344,0.20725,65798.0,65797.0,2.56425811]
[1721401155594,0.20725,65798.0,65797.0,2.56428042]
[1721401155802,0.20725,65798.0,65797.0,2.47426048]
[1721401156214,0.20725,65798.0,65797.0,2.56428508]
[1721401156420,0.20725,65798.0,65797.0,2.47426048]
[1721401156633,0.20725,65798.0,65797.0,2.56429985]
[1721401156988,0.20725,65798.0,65797.0,2.58680858]
[1721401157189,0.20725,65798.0,65797.0,2.27145668]
[1721401157403,0.20725,65798.0,65797.0,2.47425817]
[1721401157600,0.20725,65798.0,65797.0,2.39105817]
[1721401158001,0.20725,65798.0,65797.0,2.40700181]
[1721401158206,0.20725,65798.0,65797.0,2.1548006]
[1721401158381,0.20725,65798.0,65797.0,2.08709317]
[1721401158584,0.20725,65798.0,65797.0,2.45880675]
[1721401159010,0.20725,65798.0,65797.0,2.15484175]
[1721401159196,0.20725,65798.0,65797.0,2.45880675]
[1721401162765,0.20725,65798.0,65797.0,1.75468252]
[1721401163159,0.20725,65798.0,65797.0,1.82232921]
[1721401163502,0.20725,65798.0,65797.0,1.43931425]
[1721401163642,0.20725,65798.0,65797.0,1.82234306]
[1721401163861,0.20725,65798.0,65797.0,1.82233546]
[1721401165552,0.20725,65798.0,65797.0,2.395514]
[1721401165755,0.20725,65798.0,65797.0,2.46312054]
[1721401166069,0.20725,65798.0,65797.0,2.395514]
[1721401166266,0.20725,65798.0,65797.0,2.39550947]
[1721401166680,0.20725,65798.0,65797.0,2.48565674]
[1721401169606,0.20725,65798.0,65797.0,1.74327925]
[1721401169804,0.20725,65798.0,65797.0,2.48575368]
[1721401171391,0.20725,65798.0,65797.0,2.39549414]
[1721401172463,0.20725,65798.0,65797.0,2.53709414]
[1721401172660,0.20725,65798.0,65797.0,2.22172734]
[1721401172832,0.20225,65798.0,65797.0,2.53704549]
[1721401173189,0.20225,65798.0,65797.0,2.68159476]
[1721401173476,0.20225,65798.0,65797.0,2.53704549]
[1721401175136,0.20225,65798.0,65797.0,2.46164549]
[1721401175548,0.20225,65798.0,65797.0,2.39544549]
[1721401176084,0.20225,65798.0,65797.0,2.39544432]
[1721401179131,0.20225,65798.0,65797.0,2.39544384]
[1721401179726,0.20225,65798.0,65797.0,2.39444384]
[1721401181576,0.20225,65798.0,65797.0,2.29344384]
[1721401181780,0.35115,65798.0,65797.0,2.29444384]
[1721401182178,0.28475,65798.0,65797.0,2.16830913]
[1721401182378,0.20225,65798.0,65797.0,2.2944478]
[1721401182614,0.20225,65798.0,65797.0,1.64227925]
[1721401182813,0.20225,65798.0,65797.0,2.2944525]
[1721401183148,0.20225,65798.0,65797.0,2.40761243]
[1721401183420,0.20225,65798.0,65797.0,2.50761243]
[1721401184862,0.20225,65798.0,65797.0,2.3944525]
[1721401185511,0.20225,65798.0,65797.0,2.3944605]
[1721401186142,10.20225,65798.0,65797.0,2.3944605]
[1721401186349,10.26445,65798.0,65797.0,2.3944605]
[1721401186767,10.26445,65798.0,65797.0,2.2934605]
[1721401186971,10.26445,65798.0,65797.0,2.5077869]
[1721401187183,10.26445,65798.0,65797.0,2.570858]
[1721401188330,10.34125,65798.0,65797.0,1.74227925]
[1721401188530,10.34125,65798.0,65797.0,2.57079848]
[1721401190531,10.20225,65798.0,65797.0,2.57079848]
[1721401191527,10.20225,65798.0,65797.0,2.57080764]
[1721401191733,10.34805,65798.0,65797.0,2.46980764]
[1721401193042,10.34805,65798.0,65797.0,2.57080157]
[1721401194296,10.34805,65798.0,65797.0,2.4575358]
[1721401194496,10.34805,65798.0,65797.0,2.4565358]
[1721401194700,10.34805,65798.0,65797.0,2.1197061]
[1721401194899,10.34805,65798.0,65797.0,2.56979879]
[1721401195100,10.28415,65798.0,65797.0,2.56979879]
[1721401195672,10.28415,65798.0,65797.0,2.57839879]
[1721401196069,10.28415,65798.0,65797.0,2.55574048]
[1721401196070,10.20225,65798.0,65797.0,2.55574048]
[1721401196633,10.20225,65798.0,65797.0,2.19627383]
[1721401196867,10.20225,65798.0,65797.0,2.2291672]
[1721401197040,10.20225,65798.0,65797.0,1.89231169]
[1721401197391,10.34395,65798.0,65797.0,1.89231169]
[1721401197806,10.34395,65798.0,65797.0,1.44590818]
[1721401198004,10.34395,65798.0,65797.0,1.72336719]
[1721401198401,10.34395,65798.0,65797.0,1.76868455]
[1721401199028,10.34395,65798.0,65797.0,1.72336719]
[1721401199249,10.20225,65798.0,65797.0,2.21584027]
[1721401199482,10.34285,65798.0,65797.0,2.15084027]
[1721401200618,10.20225,65798.0,65797.0,1.71194968]
[1721401200824,10.20225,65798.0,65797.0,2.45481824]
[1721401201243,10.20225,65798.0,65797.0,2.52132696]
[1721401201486,10.20225,65798.0,65797.0,2.45482696]
[1721401201982,10.20225,65798.0,65797.0,2.46516169]
[1721401203227,10.20225,65798.0,65797.0,1.74987318]
[1721401203437,10.20225,65798.0,65797.0,2.46512466]
[1721401203642,10.20225,65798.0,65797.0,1.9642237]
[1721401203848,10.20225,65798.0,65797.0,2.57859014]
[1721401204001,10.20225,65798.0,65797.0,2.57860951]
[1721401205191,10.20225,65798.0,65797.0,2.46512608]
[1721401205831,10.20225,65798.0,65797.0,2.14977556]
[1721401206028,10.20225,65798.0,65797.0,2.61218834]
[1721401206261,10.20225,65798.0,65797.0,2.79835666]
[1721401206473,10.20225,65798.0,65797.0,2.66216979]
[1721401206862,10.20225,65798.0,65797.0,2.79833211]
[1721401207112,10.20225,65798.0,65797.0,2.67125715]
[1721401207322,10.20225,65798.0,65797.0,2.74832811]
[1721401207676,10.20225,65798.0,65797.0,2.62125711]
[1721401209136,10.20225,65798.0,65797.0,2.92522211]
[1721401209463,10.20225,65798.0,65797.0,2.73603328]
[1721401209636,10.20225,65798.0,65797.0,2.92523506]
[1721401210047,10.20225,65798.0,65797.0,2.91614667]
[1721401210615,10.20225,65798.0,65797.0,2.96614667]
[1721401211075,10.20225,65798.0,65797.0,2.95214667]
[1721401211960,10.20225,65798.0,65797.0,2.95414667]
[1721401212505,10.20225,65798.0,65797.0,2.6388011]
[1721401212661,10.20225,65798.0,65797.0,2.95412175]
[1721401213029,10.20225,65798.0,65797.0,2.96812175]
[1721401213238,10.20225,65798.0,65797.0,2.96810387]
[1721401213648,8.98225,65798.0,65797.0,2.96810387]